Workbook

Sheet Game odds
B1: Game Odds
B3: McDonald’s runs a promotion in which 500,000 stamps will be distributed. Three of those stamps read
B4: “Instant Winner! $100,000!” If you buy eight food items with stamps attached, what are the odds that
B5: you will receive (at least) one of these three stamps? Give your answer as “1 in x.”
B7: 500000 | C7: stamps
B8: 8 | C8: collected
B9: 3 | C9: prize stamps
B11: This is an "at least" problem. Let's try, instead, finding the probability of receiving no winning stamps,
B12: and then subtract that from 1.
B14: =1-COMBIN(B7-B9,B8)/COMBIN(B7,B8) -> 4.7999328e-05 | C14: Pr(collecting a prize stamp)
B15: =1/B14 -> 20833.625 | C15: the odds of winning are 1 in …
B18: In another promotion, McDonald’s prints 10,000 of each of 12 different types of stamps (each marked
B19: with a Zodiac sign). A particular pair of stamps (Pisces and Aquarius) can be turned in for a free
B20: Coca-Cola. If you collect a total of 8 stamps, what is the probability that you will be able to claim a
B21: free Coke?
B23: Again, this is an "at least" problem (i.e., we're after the probability of winning at least one free Coke).
B24: Let's flip it around: What's the probability of winning no Cokes? Well, to not win any Cokes, we must
B25: fail to get any Pisces stamps, or fail to get any Aquarius stamps (or fail to get any of either type).
B26: Let's break this "or" problem down, using Pr(A or B) = Pr(A) + Pr(B) - Pr(A and B), where A = "we get
B27: no Pisces stamps," and B = "we get no Aquarius stamps."
B29: 10000 | C29: stamps of each type
B30: 12 | C30: types
B31: 8 | C31: stamps collected
B32: =COMBIN((B30-1)*B29,8)/COMBIN(B30*B29,8) -> 0.4985196715 | C32: Pr(A)
B33: =B32 -> 0.4985196715 | C33: Pr(B)
B34: =COMBIN((B30-2)*B29,8)/COMBIN(B30*B29,8) -> 0.2325571859 | C34: Pr(A and B)
B35: =B32+B33-B34 -> 0.7644821571 | C35: Pr(A or B)
B36: =1-B35 -> 0.2355178429 | C36: Pr(get a free Coke)
B39: McDonald’s cuts a deal with Michael Jordan. They will print a large (and equal) number of each of
B40: twelve “action photo” trading cards showing highlights of Jordan’s basketball career. If you get a single
B41: randomly-selected card each time you eat at McDonald’s, how many meals would you need to buy to
B42: have at least a 50% chance of receiving all 12 cards?
B44: 12 | C44: types of cards
B46: There's no quick way to work this problem. But we can break it into steps. There are, for example,
B47: only two different ways to end up with 5 different cards after eating 8 meals: Have 5 different cards
B48: after your first 7 meals, and then get a duplicate on your 8th meal - or have only four different cards
B49: after your first 7 meals, and then get a new type of card on your 8th meal.
B51: Therefore, Pr(5 types of cards after 8 meals) =
B52: Pr(5 types after 7 meals) * Pr(duplicate card on 8th meal | 5 types after 7 meals)
B53: Pr(4 types after 7 meals) * Pr(new type of card on 8th meal | 4 types after 7 meals)
B55: But Pr(duplicate card on 8th meal | 5 types after 7 meals) = 5/12, and
B56: Pr(new type of card on 8th meal | 4 types after 7 meals) = 8/12
B58: And consequently, the 8th-meal probability can be calculated from the two 7th-meal probabilities. This
B59: idea is used in the table below. (The first-row and first-column probabilities were calculated directly.)
B61: Scanning down the last column, we find that one would have to buy at least 35 meals in order to have
B62: at least a 50% chance of collecting all 12 types of cards.
D64: distinct cards collected
D65: 1 | E65: 2 | F65: 3 | G65: 4 | H65: 5 | I65: 6 | J65: 7 | K65: 8 | L65: 9 | M65: 10 | N65: 11 | O65: 12
C66: 1 | D66: 1 | E66: 0 | F66: 0 | G66: 0 | H66: 0 | I66: 0 | J66: 0 | K66: 0 | L66: 0 | M66: 0 | N66: 0 | O66: 0
C67: 2 | D67: =(1/$B$44)^(C67-1) -> 0.08333333333 | E67: =E66*(E$65/$B$44)+D66*(1-D$65/$B$44) -> 0.9166666667 | F67: =F66*(F$65/$B$44)+E66*(1-E$65/$B$44) -> 0 | G67: =G66*(G$65/$B$44)+F66*(1-F$65/$B$44) -> 0 | H67: =H66*(H$65/$B$44)+G66*(1-G$65/$B$44) -> 0 | I67: =I66*(I$65/$B$44)+H66*(1-H$65/$B$44) -> 0 | J67: =J66*(J$65/$B$44)+I66*(1-I$65/$B$44) -> 0 | K67: =K66*(K$65/$B$44)+J66*(1-J$65/$B$44) -> 0 | L67: =L66*(L$65/$B$44)+K66*(1-K$65/$B$44) -> 0 | M67: =M66*(M$65/$B$44)+L66*(1-L$65/$B$44) -> 0 | N67: =N66*(N$65/$B$44)+M66*(1-M$65/$B$44) -> 0 | O67: =O66*(O$65/$B$44)+N66*(1-N$65/$B$44) -> 0
C68: 3 | D68: 0.006944444444 | E68: 0.2291666667 | F68: 0.7638888889 | G68: 0 | H68: 0 | I68: 0 | J68: 0 | K68: 0 | L68: 0 | M68: 0 | N68: 0 | O68: 0
B69: number | C69: 4 | D69: 0.0005787037037 | E69: 0.04456018519 | F69: 0.3819444444 | G69: 0.5729166667 | H69: 0 | I69: 0 | J69: 0 | K69: 0 | L69: 0 | M69: 0 | N69: 0 | O69: 0
B70: of | C70: 5 | D70: 4.822530864e-05 | E70: 0.007957175926 | F70: 0.1326195988 | G70: 0.4774305556 | H70: 0.3819444444 | I70: 0 | J70: 0 | K70: 0 | L70: 0 | M70: 0 | N70: 0 | O70: 0
B71: cards | C71: 6 | D71: 4.01877572e-06 | E71: 0.001370402521 | F71: 0.03978587963 | G71: 0.2586082176 | H71: 0.4774305556 | I71: 0.2228009259 | J71: 0 | K71: 0 | L71: 0 | M71: 0 | N71: 0 | O71: 0
B72: collected | C72: 7 | D72: 3.348979767e-07 | E72: 0.0002320842978 | F72: 0.01108847201 | G72: 0.1160421489 | H72: 0.3713348765 | I72: 0.3899016204 | J72: 0.111400463 | K72: 0 | L72: 0 | M72: 0 | N72: 0 | O72: 0
B73: (i.e., meals eaten) | C73: 8 | D73: 2.790816472e-08 | E73: 3.898770612e-05 | F73: 0.002965521584 | G73: 0.04699707031 | H73: 0.2320842978 | I73: 0.4115628215 | J73: 0.2599344136 | K73: 0.04641685957 | L73: 0 | M73: 0 | N73: 0 | O73: 0
C74: 9 | D74: 2.325680394e-09 | E74: 6.523533504e-06 | F74: 0.000773870151 | G74: 0.01788983129 | H74: 0.128033171 | I74: 0.3411639178 | J74: 0.3574098187 | K74: 0.1392505787 | L74: 0.01547228652 | M74: 0 | N74: 0 | O74: 0
C75: 10 | D75: 1.938066995e-10 | E75: 1.089387458e-06 | F75: 0.0001989038157 | G75: 0.00654367971 | H75: 0.06527370877 | I75: 0.2452679753 | J75: 0.3790710198 | K75: 0.2417544769 | L75: 0.05802107446 | M75: 0.003868071631 | N75: 0 | O75: 0
C76: 11 | D76: 1.615055829e-11 | E76: 1.817422324e-07 | F76: 5.06337768e-05 | G76: 0.002330404432 | H76: 0.03155983179 | I76: 0.1607103178 | J76: 0.3437587492 | K76: 0.3191159095 | L76: 0.1241006315 | M76: 0.01772866164 | N76: 0.0006446786051 | O76: 0
C77: 12 | D77: 1.345879857e-12 | E77: 3.030517675e-08 | F77: 1.280989606e-05 | G77: 0.0008147768099 | H77: 0.01470353287 | I77: 0.09876506077 | J77: 0.2808810959 | K77: 0.3559767519 | L77: 0.1994474435 | M77: 0.04579904257 | N77: 0.003545732328 | O77: 5.372321709e-05
C78: 13 | D78: 1.121566548e-13 | E78: 5.052096515e-09 | F78: 3.227728329e-06 | G78: 0.000281199692 | H78: 0.006669656568 | I78: 0.05795959122 | J78: 0.2132298363 | K78: 0.3543516245 | L78: 0.2682444999 | M78: 0.08802772967 | N78: 0.0108834284 | O78: 0.0003492009111
C79: 14 | D79: 9.346387899e-15 | E79: 8.421188961e-10 | F79: 8.111421626e-07 | G79: 9.615402692e-05 | H79: 0.002966490032 | I79: 0.03287042861 | J79: 0.1533638668 | K79: 0.3250801815 | L79: 0.3193005831 | M79: 0.1404175664 | N79: 0.02464776431 | O79: 0.001256153277
C80: 15 | D80: 7.788656582e-16 | E80: 1.403617169e-10 | F80: 2.034873064e-07 | G80: 3.265969893e-05 | H80: 0.001300140198 | I80: 0.01816566682 | J80: 0.1058974699 | K80: 0.2806217322 | L80: 0.3478354978 | M80: 0.1968397844 | N80: 0.04599671168 | O80: 0.003310133636
C81: 16 | D81: 6.490547152e-17 | E81: 2.339433344e-11 | F81: 5.09887947e-08 | G81: 1.103918179e-05 | H81: 0.000563498215 | I81: 0.009841248527 | J81: 0.07085635755 | K81: 0.2312051006 | L81: 0.3544172008 | M81: 0.2509920281 | N81: 0.07497028311 | O81: 0.007143192943
C82: 17 | D82: 5.408789293e-18 | E82: 3.89911507e-12 | F82: 1.276669395e-08 | G82: 3.717968859e-06 | H82: 0.0002421503774 | I82: 0.005249331556 | J82: 0.0462534995 | K82: 0.183660216 | L82: 0.3428812674 | M82: 0.2977643236 | N82: 0.1105547642 | O82: 0.01339071653
C83: 18 | D83: 4.507324411e-19 | E83: 6.498574697e-13 | F83: 3.194922751e-09 | G83: 1.248897973e-06 | H83: 0.0001033746365 | I83: 0.002765920165 | J83: 0.02960587382 | K83: 0.1417124355 | L83: 0.3183810226 | M83: 0.3338572532 | N83: 0.1509692545 | O83: 0.02260361355
C84: 19 | D84: 3.756103676e-20 | E84: 1.083099914e-13 | F84: 7.992722356e-10 | G84: 4.186955166e-07 | H84: 4.390536386e-05 | I84: 0.001443261954 | J84: 0.01865305314 | K84: 0.1068107377 | L84: 0.2860232454 | M84: 0.3578096333 | N84: 0.1940313588 | O84: 0.03518438476
C85: 20 | D85: 3.130086397e-21 | E85: 1.805169967e-14 | F85: 1.999083172e-10 | G85: 1.401646264e-07 | H85: 1.857303195e-05 | I85: 0.0007472424391 | J85: 0.01160257864 | K85: 0.07897926397 | L85: 0.2501210133 | M85: 0.3696805058 | N85: 0.2374970178 | O85: 0.05135366466
C86: 21 | D86: 2.60840533e-22 | E86: 3.008619481e-15 | F86: 4.999212239e-11 | G86: 4.687147336e-08 | H86: 7.832206398e-06 | I86: 0.0003844554882 | J86: 0.007141792095 | K86: 0.05748725042 | L86: 0.2139171813 | M86: 0.3705973415 | N86: 0.2793190173 | O86: 0.0711450828
C87: 22 | D87: 2.173671109e-23 | E87: 5.014368193e-16 | F87: 1.250053778e-11 | G87: 1.566131854e-08 | H87: 3.294666981e-06 | I87: 0.0001967965311 | J87: 0.004358273133 | K87: 0.04130058032 | L87: 0.1796003028 | M87: 0.3623104132 | N87: 0.3178086561 | O87: 0.09442166757
C88: 23 | D88: 1.811392591e-24 | E88: 8.357282315e-17 | F88: 3.125552309e-12 | G88: 5.229814918e-09 | H88: 1.383218788e-06 | I88: 0.0001003201546 | J88: 0.00264072426 | K88: 0.02934966735 | L88: 0.1484670872 | M88: 0.3468254201 | N88: 0.3517096703 | O88: 0.1209057222
C89: 24 | D89: 1.509493825e-25 | E89: 1.392880552e-17 | F89: 7.814577213e-13 | G89: 1.745615804e-09 | H89: 5.798277049e-07 | I89: 5.096695495e-05 | J89: 0.001590582562 | K89: 0.02066674668 | L89: 0.1211335379 | M89: 0.3261379552 | N89: 0.3802047678 | O89: 0.1502148614
C90: 25 | D90: 1.257911521e-26 | E90: 2.321467725e-18 | F90: 1.953760377e-13 | G90: 5.824580278e-10 | H90: 2.427586209e-07 | I90: 2.58217103e-05 | J90: 0.0009533233054 | K90: 0.01444057385 | L90: 0.09773906895 | M90: 0.3020650138 | N90: 0.402877363 | O90: 0.1818985921
C91: 26 | D91: 1.048259601e-27 | E91: 3.86911299e-19 | F91: 4.884594397e-14 | G91: 1.94299208e-10 | H91: 1.015377307e-07 | I91: 1.305246435e-05 | J91: 0.0005690161166 | K91: 0.01002426728 | L91: 0.07811782633 | M91: 0.2761556121 | N91: 0.4196484184 | O91: 0.2154717057
C92: 27 | D92: 8.735496675e-29 | E92: 6.448521746e-20 | F92: 1.221180842e-14 | G92: 6.480303712e-11 | H92: 4.243692061e-08 | I92: 6.585462516e-06 | J92: 0.0003384523002 | K92: 0.006919934901 | L92: 0.06192979217 | M92: 0.2496591333 | N92: 0.4307036522 | O92: 0.2504424072
C93: 28 | D93: 7.279580563e-30 | E93: 1.074753632e-20 | F93: 3.053005842e-15 | G93: 2.161017123e-11 | H93: 1.772525228e-08 | I93: 3.317486129e-06 | J93: 0.0002007232397 | K93: 0.004754311725 | L93: 0.0487539891 | M93: 0.2235317258 | N93: 0.4364215367 | O93: 0.2863343782
C94: 29 | D94: 6.066317136e-31 | E94: 1.791256061e-21 | F94: 7.632604169e-16 | G94: 7.205680164e-12 | H94: 7.399928564e-09 | I94: 1.669082795e-06 | J94: 0.0001187472996 | K94: 0.003253175834 | L94: 0.0381502624 | M94: 0.1984649354 | N94: 0.4373083629 | O94: 0.3227028396
C95: 30 | D95: 5.05526428e-32 | E95: 2.985426773e-22 | F95: 1.908165969e-16 | G95: 2.402465833e-12 | H95: 3.088107355e-09 | I95: 8.388580224e-07 | J95: 7.010379948e-05 | K95: 0.00221826193 | L95: 0.02969708874 | M95: 0.1749250118 | N95: 0.4339434886 | O95: 0.3591452032
C96: 31 | D96: 4.212720233e-33 | E96: 4.975711293e-23 | F96: 4.770439802e-17 | G96: 8.009650569e-13 | H96: 1.288313042e-09 | I96: 4.212304072e-07 | J96: 4.131331204e-05 | K96: 0.001508051203 | L96: 0.0230122372 | M96: 0.1531951153 | N96: 0.4269356999 | O96: 0.3953071606
C97: 32 | D97: 3.510600194e-34 | E97: 8.292852159e-24 | F97: 1.192614097e-17 | G97: 2.670241306e-13 | H97: 5.373310775e-10 | I97: 2.113667195e-07 | J97: 2.431004723e-05 | K97: 0.001022581349 | L97: 0.01776186163 | M97: 0.1334156554 | N97: 0.4168902441 | O97: 0.4308851356
C98: 33 | D98: 2.925500162e-35 | E98: 1.382142027e-24 | F98: 2.981542153e-18 | G98: 8.901698813e-14 | H98: 2.24065965e-10 | I98: 1.059968029e-07 | J98: 1.428654424e-05 | K98: 0.0006918500857 | L98: 0.01366225668 | M98: 0.1156201783 | N98: 0.404385333 | O98: 0.4656259892
C99: 34 | D99: =(1/$B$44)^(C99-1) -> 2.437916802e-36 | E99: =E98*(E$65/$B$44)+D98*(1-D$65/$B$44) -> 2.303570045e-25 | F99: =F98*(F$65/$B$44)+E98*(1-E$65/$B$44) -> 7.4538669e-19 | G99: =G98*(G$65/$B$44)+F98*(1-F$65/$B$44) -> 2.967456553e-14 | H99: =H98*(H$65/$B$44)+G98*(1-G$65/$B$44) -> 9.342016343e-11 | I99: =I98*(I$65/$B$44)+H98*(1-H$65/$B$44) -> 5.312910659e-08 | J99: =J98*(J$65/$B$44)+I98*(1-I$65/$B$44) -> 8.386815876e-06 | K99: =K98*(K$65/$B$44)+J98*(1-J$65/$B$44) -> 0.0004671861172 | L99: =L98*(L$65/$B$44)+K98*(1-K$65/$B$44) -> 0.0104773092 | M99: =M98*(M$65/$B$44)+L98*(1-L$65/$B$44) -> 0.09976571272 | N99: =N98*(N$65/$B$44)+M98*(1-M$65/$B$44) -> 0.3899565849 | O99: =O98*(O$65/$B$44)+N98*(1-N$65/$B$44) -> 0.499324767
C100: 35 | D100: 2.031597335e-37 | E100: 3.839283409e-26 | F100: 1.863468645e-19 | G100: 9.892080885e-15 | H100: 3.894485114e-11 | I100: 2.661904839e-08 | J100: 4.918873814e-06 | K100: 0.0003149519181 | L100: 0.008013710607 | M100: 0.08575742123 | N100: 0.3740878217 | O100: 0.5318211491
C101: 36 | D101: 1.692997779e-38 | E101: 6.398805681e-27 | F101: 4.658674811e-20 | G101: 3.297500055e-15 | H101: 1.623361603e-11 | I101: 1.333224202e-08 | J101: 2.882652582e-06 | K101: 0.0002120174761 | L101: 0.006115266928 | M101: 0.07346794535 | N101: 0.3572067401 | O101: 0.5629951342
C102: 37 | D102: 1.410831482e-39 | E102: 1.066467614e-27 | F102: 1.164669236e-20 | G102: 1.099201625e-15 | H102: 6.766205012e-12 | I102: 6.675590622e-09 | J102: 1.688213461e-06 | K102: 0.0001425460893 | L102: 0.004657122688 | M102: 0.06275210452 | N102: 0.3396841693 | O102: 0.5927623625
C103: 38 | D103: 1.175692902e-40 | E103: 1.777446023e-28 | F103: 2.911673979e-21 | G103: 3.664092767e-16 | H103: 2.819984889e-12 | I103: 3.341742264e-09 | J103: 9.881289808e-07 | K103: 9.57341485e-05 | L103: 0.003540357379 | M103: 0.05345770111 | N103: 0.3218358393 | O103: 0.6210693766
C104: 39 | D104: 9.79744085e-42 | E104: 2.962410038e-29 | F104: 7.279186428e-22 | G104: 1.221386093e-16 | H104: 1.175237977e-12 | I104: 1.672516123e-09 | J104: 5.780794432e-07 | K104: 6.423448608e-05 | L104: 0.002687179417 | M104: 0.0454331736 | N104: 0.3039258028 | O104: 0.6478890299
C105: 40 | D105: 8.164534042e-43 | E105: 4.937350063e-30 | F105: 1.819796854e-22 | G105: 4.071341572e-17 | H105: 4.89763916e-13 | I105: 8.36943617e-10 | J105: 3.380492666e-07 | K105: 4.306385715e-05 | L105: 0.002036796058 | M105: 0.03853277285 | N105: 0.2861708482 | O105: 0.6732161801
C106: 41 | D106: 6.803778368e-44 | E106: 8.228916771e-31 | F106: 4.549492546e-23 | G106: 1.357127506e-17 | H106: 2.040954406e-13 | I106: 4.187575041e-10 | J106: 1.976138773e-07 | K106: 2.885009196e-05 | L106: 0.001541951663 | M106: 0.03261984306 | N106: 0.2687454063 | O106: 0.6970637508
C107: 42 | D107: 5.669815307e-45 | E107: 1.371486129e-31 | F107: 1.137373205e-23 | G107: 4.523792473e-18 | H107: 8.504881444e-14 | I107: 2.094978077e-10 | J107: 1.154841405e-07 | K107: 1.931573376e-05 | L107: 0.001166080444 | M107: 0.02756869047 | N107: 0.2517865963 | O107: 0.7194592014
C108: 43 | D108: 4.724846089e-46 | E108: 2.285810214e-32 | F108: 2.843433127e-24 | G108: 1.507939355e-18 | H108: 3.544002188e-14 | I108: 1.047985157e-10 | J108: 6.747049755e-08 | K108: 1.292527423e-05 | L108: 0.0008809989112 | M108: 0.02326542883 | N108: 0.2353991617 | O108: 0.7404414177
C109: 44 | D109: 3.937371741e-47 | E109: 3.80968369e-33 | F109: 7.108583008e-25 | G109: 5.026485842e-19 | H109: 1.476768108e-14 | I109: 5.241993119e-11 | J109: 3.941018949e-08 | K109: 8.644962194e-06 | L109: 0.0006650576081 | M109: 0.01960810709 | N109: 0.2196601364 | O109: 0.7600580145
C110: 45 | D110: 3.281143117e-48 | E110: 6.349472817e-34 | F110: 1.777145784e-25 | G110: 1.675500612e-19 | H110: 6.153535547e-15 | I110: 2.621858007e-11 | J110: 2.301548717e-08 | K110: 5.779729042e-06 | L110: 0.0005016748602 | M110: 0.01650635364 | N110: 0.2046231428 | O110: 0.7783630259
C111: 46 | D111: 2.734285931e-49 | E111: 1.05824547e-34 | F111: 4.442864512e-26 | G111: 5.585015369e-20 | H111: 2.564084845e-15 | I111: 1.31128796e-11 | J111: 1.343881014e-08 | K111: 3.862742481e-06 | L111: 0.0003781827215 | M111: 0.01388071342 | N111: 0.1903222732 | O111: 0.7954149545
C112: 47 | D112: 2.278571609e-50 | E112: 1.763742449e-35 | F112: 1.110716137e-26 | G112: 1.861675122e-20 | H112: 1.068405919e-15 | I112: 6.557935516e-12 | J112: 7.845862355e-09 | K112: 2.580761158e-06 | L112: 0.0002849246219 | M112: 0.01166180686 | N112: 0.176775536 | O112: 0.8112751439
C113: 48 | D113: 1.898809674e-51 | E113: 2.939570749e-36 | F113: 2.776790357e-27 | G113: 6.205592069e-21 | H113: 4.45181544e-16 | I113: 3.279590995e-12 | J113: 4.580032008e-09 | K113: 1.723776548e-06 | L113: 0.0002145537202 | M113: 0.00978940354 | N113: 0.1639878758 | O113: 0.8260064386
C114: 49 | D114: 1.582341395e-52 | E114: 4.899284581e-37 | F114: 6.941975917e-28 | G114: 2.068532772e-21 | H114: 1.854964471e-16 | I114: 1.640055187e-12 | J114: 2.673325133e-09 | K114: 1.151092712e-06 | L114: 0.0001614898823 | M114: 0.008211474713 | N114: 0.1519537868 | O114: 0.8396720949
C115: 50 | D115: 1.318617829e-53 | E115: 8.165474302e-38 | F115: 1.735493983e-28 | G115: 6.895114448e-22 | H115: 7.72915653e-17 | I115: 8.201357995e-13 | J115: 1.560259689e-09 | K115: 7.685090268e-07 | L115: 0.0001215011093 | M115: 0.006883268065 | N115: 0.1406595503 | O115: 0.8523349104

Sheet Traffic cohorts
B1: Traffic Cohorts
C3: Eight cars pull out of a restaurant parking lot at roughly the same time. Due to on-going roadwork, they find
C4: themselves on a long stretch of single-lane highway with no passing opportunities. Each driver has a different “ideal”
C5: speed at which he would like to drive, and drives at that speed if unimpeded. Eventually the cars will be divided into
C6: one or more “cohorts,” each cohort consisting of an unimpeded driver and his impeded followers. What is the
C7: probability that the cars will break into 4 distinct cohorts?
D9: cars
B10: cohorts | D10: 1 | E10: 2 | F10: 3 | G10: 4 | H10: 5 | I10: 6 | J10: 7 | K10: 8 | L10: 9 | M10: 10
C11: 1 | D11: 1 | E11: =1/E10 -> 0.5 | F11: =1/F10 -> 0.3333333333 | G11: 0.25 | H11: 0.2 | I11: 0.1666666667 | J11: 0.1428571429 | K11: 0.125 | L11: 0.1111111111 | M11: 0.1
C12: 2 | D12: 0 | E12: =(1/E$10)*D11+(1-1/E$10)*D12 -> 0.5 | F12: =(1/F$10)*E11+(1-1/F$10)*E12 -> 0.5 | G12: 0.4583333333 | H12: 0.4166666667 | I12: 0.3805555556 | J12: 0.35 | K12: 0.3241071429 | L12: 0.301984127 | M12: 0.2828968254
C13: 3 | D13: 0 | E13: =(1/E$10)*D12+(1-1/E$10)*D13 -> 0 | F13: 0.1666666667 | G13: 0.25 | H13: 0.2916666667 | I13: 0.3125 | J13: 0.3222222222 | K13: 0.3256944444 | L13: 0.3255180776 | M13: 0.3231646825
C14: 4 | D14: 0 | E14: 0 | F14: 0 | G14: 0.04166666667 | H14: 0.08333333333 | I14: 0.1180555556 | J14: 0.1458333333 | K14: 0.1678819444 | L14: 0.1854166667 | M14: 0.1994268078
C15: 5 | D15: 0 | E15: 0 | F15: 0 | G15: 0 | H15: 0.008333333333 | I15: 0.02083333333 | J15: 0.03472222222 | K15: 0.04861111111 | L15: 0.06186342593 | M15: 0.07421875
C16: 6 | D16: 0 | E16: 0 | F16: 0 | G16: 0 | H16: 0 | I16: 0.001388888889 | J16: 0.004166666667 | K16: 0.007986111111 | L16: 0.0125 | M16: 0.01743634259
C17: 7 | D17: 0 | E17: 0 | F17: 0 | G17: 0 | H17: 0 | I17: 0 | J17: 0.0001984126984 | K17: 0.0006944444444 | L17: 0.00150462963 | M17: 0.002604166667
C18: 8 | D18: 0 | E18: 0 | F18: 0 | G18: 0 | H18: 0 | I18: 0 | J18: 0 | K18: 2.48015873e-05 | L18: 9.920634921e-05 | M18: 0.0002397486772
C19: 9 | D19: 0 | E19: 0 | F19: 0 | G19: 0 | H19: 0 | I19: 0 | J19: 0 | K19: 0 | L19: 2.755731922e-06 | M19: 1.240079365e-05
C20: 10 | D20: 0 | E20: 0 | F20: 0 | G20: 0 | H20: 0 | I20: 0 | J20: 0 | K20: 0 | L20: 0 | M20: 2.755731922e-07
D23: Keys to the table:
B25: first column | E25: One car can only form one cohort.
B27: first row | E27: n cars form a single cohort precisely when the slowest car is in front.
B29: rest of table | E29: n cars form k cohorts only if (a) the fastest car is first, in a cohort of its own,
E30: and the remaining n-1 cars form k-1 cohorts, or (b) the fastest car isn't first,
E31: and the other n-1 cars form k cohorts.
C33: For example,
D35: Pr(8 cars form 4 cohorts)
D37: = | E37: Pr(fastest car is first, and the other 7 form 3 cohorts) +
E38: Pr(fastest car is not first, and the other 7 form 4 cohorts)
D40: = | E40: 1/8 * Pr(other 7 form 3 cohorts) + 7/8 * Pr(other 7 form 4 cohorts)
C42: Consequently, each probability in the table can be derived from the probabilities "west"
C43: and "northwest" of it.
B45: Traffic Cohorts, using simulation
E47: speed (mph) | F47: front of cohort
D48: order | H48: =SUM(F49:F56) -> 2 | I48: = number of cohorts
D49: 1 | E49: =30+40*RAND() -> 31.50558812 | F49: 1 | H49: =IF(H48=4,1,0) -> 0 | I49: "is the number of cohorts 4?"
D50: 2 | E50: =30+40*RAND() -> 32.42366912 | F50: =IF(E50<MIN($E$49:E49),1,0) -> 0
D51: 3 | E51: 64.05341375 | F51: =IF(E51<MIN($E$49:E50),1,0) -> 0 | H51: =ADDRESS(ROW($H$49),COLUMN($H$49)) -> $H$49 | I51: monitored cell
D52: 4 | E52: 49.8428618 | F52: =IF(E52<MIN($E$49:E51),1,0) -> 0 | H52: 0.16773 | I52: mean
D53: 5 | E53: 53.33822813 | F53: =IF(E53<MIN($E$49:E52),1,0) -> 0 | H53: 0.373628215 | I53: sample standard deviation
D54: 6 | E54: 31.98380802 | F54: =IF(E54<MIN($E$49:E53),1,0) -> 0 | H54: 0 | I54: minimum
D55: 7 | E55: 31.2437504 | F55: =IF(E55<MIN($E$49:E54),1,0) -> 1 | H55: 1 | I55: maximum
D56: 8 | E56: 48.92730748 | F56: =IF(E56<MIN($E$49:E55),1,0) -> 0 | H56: 100000 | I56: number of simulation runs
D58: So, we estimate the probability of 8 cars breaking into 4 cohorts to be | K58: =H52 -> 0.16773
D59: and the margin of error in the estimate (at the 95%-confidence level) is | K59: =1.96*H53/SQRT(H56) -> 0.002315771669

Sheet Race card
B1: A Racing Card
B3: Calder #9 06/20/2000 6 Furlongs Dirt Purse $7000 Maiden Claiming $12500
B4: Exacta & Trifecta; Superfecta
B5: P# | D5: Horse Name | E5: ML | F5: Jockey | G5: Trainer | H5: Med | I5: Equip
B6: pp 1 | C6: 1 | D6: Gate's Power | E6: 12:1 | F6: Scocca Dante | G6: O'connell Kathleen
B7: pp 2 | C7: 2 | D7: Ms. Ritmo Latino | E7: 4:1 | F7: Castellano Javi | G7: Garoffalo Jose
B8: pp 3 | C8: 3 | D8: Del Boca Vista | E8: 6:1 | F8: Melton Randi | G8: Hefner Paul
B9: pp 4 | C9: 4 | D9: Ocean Slew | E9: 8:1 | F9: Rivera; Ii J | G9: Julian William A | I9: Bon
B10: pp 5 | C10: 5 | D10: Nicole | E10: 15:1 | F10: Portillo Dougla | G10: Simone Victor
B11: pp 6 | C11: 6 | D11: A Southern Grad | E11: 5:2 | F11: Pitty Camilo D | G11: Rountree Cathy
B12: pp 7 | C12: 7 | D12: Robyns Joy | E12: 10:1 | F12: Bain Gary W | G12: Rolle Elliston C
B13: pp 8 | C13: 8 | D13: Her Richness | E13: 5:1 | F13: Morales; Jr H | G13: Canet Julian
B14: pp 9 | C14: 9 | D14: Honor The Bear | E14: 6:1 | F14: Castellano Abel | G14: Richards; Jr R
B16: post position | E16: morning line | H16: medication | I16: blinders on
E17: (odds)
C19: The material on this and the following tabs is optional. It shows in detail how
C20: parimutuel wagering works.

Sheet Parimutuel wagering
B1: A Parimutuel-Wagering Example
B3: Calder Race Course (Miami)
B4: 2000-06-20
B5: Race 9 | C5: 4:18 PM post time
F6: 1 | G6: scratch | H6: 3 | I6: 4 | J6: 5 | K6: 6 | L6: 7 | M6: 8 | N6: 9
B7: Win Pool | D7: 52913 | F7: 1682 | G7: ---- | H7: 7941 | I7: 2279 | J7: 2042 | K7: 15363 | L7: 5339 | M7: 15069 | N7: 3198
B8: Place Pool | D8: 18489 | F8: 747 | G8: ---- | H8: 3402 | I8: 1211 | J8: 956 | K8: 4735 | L8: 1559 | M8: 4823 | N8: 1056
B9: Show Pool | D9: 6921 | F9: 381 | G9: ---- | H9: 1679 | I9: 564 | J9: 409 | K9: 1430 | L9: 500 | M9: 1246 | N9: 712
B11: Finish: 3-6-9 | C11: 0.18 | D11: track takeout
C13: win | E13: place | H13: show
C14: Horse 3 | E14: Horse 3 | F14: Horse 6 | H14: Horse 3 | I14: Horse 6 | J14: Horse 9
B15: pool | C15: =D7 -> 52913 | E15: =D8 -> 18489 | H15: =D9 -> 6921 | L15: Note that cell comments
B16: after takeout | C16: =C15*(1-$C$11) -> 43388.66 | E16: =E15*(1-$C$11) -> 15160.98 | H16: =H15*(1-$C$11) -> 5675.22 | L16: in column B explain the
B17: after return | C17: =C16-H7 -> 35447.66 | E17: =E16-H8-K8 -> 7023.98 | H17: =H16-H9-K9-N9 -> 1854.22 | L17: computations.
B18: shares | C18: =C17 -> 35447.66 | E18: =E17/2 -> 3511.99 | H18: =H17/3 -> 618.0733333
B19: pre-breakage / $1 bet | C19: =1+C18/H7 -> 5.463878605 | E19: =1+E18/H8 -> 2.032330982 | F19: =1+E18/K8 -> 1.741708553 | H19: =1+H18/H9 -> 1.368119913 | I19: =1+H18/K9 -> 1.432219114 | J19: =1+H18/N9 -> 1.868080524
B20: payoff / $2 bet | C20: =2*ROUNDDOWN(C19,1) -> 10.8 | E20: =2*ROUNDDOWN(E19,1) -> 4 | F20: =2*ROUNDDOWN(F19,1) -> 3.4 | H20: =2*ROUNDDOWN(H19,1) -> 2.6 | I20: =2*ROUNDDOWN(I19,1) -> 2.8 | J20: =2*ROUNDDOWN(J19,1) -> 3.6
B22: Calder - Race 9 | L22: Had Horse 6 (the favorite) won …
B23: # | C23: Win | D23: Place | E23: Show
B24: 3 | C24: 10.8 | D24: 4 | E24: 2.6 | F24: announced after the race | L24: win
B25: 6 | C25: . | D25: 3.4 | E25: 2.8 | L25: Horse 6
B26: 9 | C26: . | D26: . | E26: 3.6 | L26: =D7 -> 52913 | M26: pool
L27: =L26*(1-$C$11) -> 43388.66 | M27: after takeout
L28: =L27-K7 -> 28025.66 | M28: after return
D29: =SUM(D7:E9) -> 78323 | F29: track receipts | L29: =L28 -> 28025.66 | M29: shares
D30: =D29*C11 -> 14098.14 | E30: =C11 -> 0.18 | F30: track takeout, pre-breakage | L30: =1+L29/K7 -> 2.824230944 | M30: pre-breakage / $1 bet
D31: =D29-D30-SUM(D35:D37) -> 1023.66 | E31: =D31/D29 -> 0.01306972409 | F31: breakage | L31: =2*ROUNDDOWN(L30,1) -> 5.6 | M31: payoff / $2 bet
D32: =D30+D31 -> 15121.8 | E32: =E30+E31 -> 0.1930697241 | F32: total takeout
E34: paid out from …
D35: =C20*H7/2 -> 42881.4 | E35: win pool
D36: =E20*H8/2+F20*K8/2 -> 14853.5 | E36: place pool
D37: =H20*H9/2+I20*K9/2+J20*N9/2 -> 5466.3 | E37: show pool
B40: Consider the ninth race at Calder Race Course on June 20, 2000. (See the associated spreadsheet
B41: for details.) If, after examining photographs taken at the finish line, the race judges had reversed
B42: the finishing positions of the second- and third-place horses (so the order of finish was 3-9-6),
B43: what would have been the payoff on a “place” bet on Horse 9? Should bettors holding “place”
B44: bets on Horse 3 care about the outcome of the judges’ deliberations?
B46: Had the finish order been 6-3-9, the only change would have been for "win" bets. The place and
B47: show payoffs would have been the same.
B49: If you are going to collect on a place or show bet, you'd prefer for the other place/show horses to be
B50: longshots. This would reduce the amounts "returned" from the pool, and therefore increase your
B51: "share."

Sheet Optimal bet
B1: Optimal Betting
B3: Suppose that, before the race, you had acquired information that led you to believe there was
B4: a 20% chance that Horse 3 would win the race. Taking the tote-board (reproduced below) as
B5: an accurate accounting of the bets placed by all other bettors, what would have been the
B6: optimal amount for you to bet at the last minute (on Horse 3, to win)?
F8: 1 | G8: scratch | H8: 3 | I8: 4 | J8: 5 | K8: 6 | L8: 7 | M8: 8 | N8: 9
B9: Win Pool | D9: 52913 | F9: 1682 | G9: ---- | H9: 7941 | I9: 2279 | J9: 2042 | K9: 15363 | L9: 5339 | M9: 15069 | N9: 3198
B10: Place Pool | D10: 18489 | F10: 747 | G10: ---- | H10: 3402 | I10: 1211 | J10: 956 | K10: 4735 | L10: 1559 | M10: 4823 | N10: 1056
B11: Show Pool | D11: 6921 | F11: 381 | G11: ---- | H11: 1679 | I11: 564 | J11: 409 | K11: 1430 | L11: 500 | M11: 1246 | N11: 712
B12: bettor assessments (to win) | F12: =F9/$D$9 -> 0.03178802941 | H12: =H9/$D$9 -> 0.1500765407 | I12: 0.04307070096 | J12: 0.03859165045 | K12: 0.2903445278 | L12: 0.1009014798 | M12: 0.2847882373 | N12: 0.06043883356 | O12: =SUM(F12:N12) -> 1
B13: your assessment | H13: 0.2
D15: 478.4154375 | E15: your bet (on Horse 3, to win) | I15: Determined by trial-and-error, using
D16: 0.18 | E16: track takeout | I16: values near $475.
D17: =D9+D15 -> 53391.41544 | E17: win pool
D18: =D17*(1-D16) -> 43780.96066 | E18: after takeout
D19: =D18-H9-D15 -> 35361.54522 | E19: after return
D20: =D19 -> 35361.54522 | E20: share
D21: =1+D20/(H9+D15) -> 5.200000046 | E21: pre-breakage / $1 bet
D22: =2*ROUNDDOWN(D21,1) -> 10.4 | E22: payoff / $2 bet
D23: =-D15+D22*D15/2*H13 -> 19.1366175 | E23: expected profit
C26: profit table
C27: bet | D27: expected profit
D28: =D23 -> 19.1366175
C29: 0 | D29: 0
C30: 25 | D30: 2
C31: 50 | D31: 4
C32: 75 | D32: 6
C33: 100 | D33: 8
C34: 125 | D34: 7.5
C35: 150 | D35: 9
C36: 175 | D36: 10.5
C37: 200 | D37: 12
C38: 225 | D38: 13.5
C39: 250 | D39: 15
C40: 275 | D40: 16.5
C41: 300 | D41: 12
C42: 325 | D42: 13
C43: 350 | D43: 14
C44: 375 | D44: 15
C45: 400 | D45: 16
C46: 425 | D46: 17
C47: 450 | D47: 18
C48: 475 | D48: 19
C49: 500 | D49: 10
C50: 525 | D50: 10.5
C51: 550 | D51: 11
C52: 575 | D52: 11.5
C53: 600 | D53: 12
C54: 625 | D54: 12.5
C55: 650 | D55: 13
C56: 675 | D56: 13.5
C57: 700 | D57: 0
C58: 725 | D58: 0
C59: 750 | D59: 0
C60: 775 | D60: 0
C61: 800 | D61: 0
C62: 825 | D62: 0
C63: 850 | D63: 0
C64: 875 | D64: 0
C65: 900 | D65: -18
C66: 925 | D66: -18.5
C67: 950 | D67: -19
C68: 975 | D68: -19.5
C69: 1000 | D69: -20
C70: 1025 | D70: -20.5
C71: 1050 | D71: -21
C72: 1075 | D72: -21.5
C73: 1100 | D73: -44
